fUSD/lending_fUSD_20240201
["ID","MTS","AMOUNT","RATE_DAILY","PERIOD"]
[313153929,1706823056969,-500.0,0.00041096,2]
[313153930,1706823056979,-500.0,0.00041096,2]
[313153931,1706823056987,-500.0,0.00041096,2]
[313153932,1706823056996,-500.0,0.00041096,2]
[313153933,1706823057005,-500.0,0.00041096,2]
[313153934,1706823057015,-150.0,0.00041096,2]
[313153935,1706823057025,-155.0,0.00041097,2]
[313153936,1706823057035,-1387.91574886,0.000411,2]
[313153937,1706823057045,-178.54597188,0.000411,2]
[313153938,1706823057054,-2000.0,0.000411,2]
[313153939,1706823057063,-562.0,0.000411,2]
[313153940,1706823057073,-2588.76548299,0.000411,2]
[313153941,1706823057082,-2221.07,0.000411,2]
[313153942,1706823057092,-2221.07,0.000411,2]
[313153943,1706823057102,-2221.07,0.000411,2]
[313153944,1706823057111,-2221.07,0.000411,2]
[313153945,1706823057120,-2221.07,0.000411,2]
[313153946,1706823057130,-2221.07,0.000411,2]
[313153947,1706823057139,-2221.07,0.000411,2]
[313153948,1706823057149,-2221.07,0.000411,2]
[313153949,1706823057159,-2221.07,0.000411,2]
[313153950,1706823057170,-2221.07,0.000411,2]
[313153951,1706823057180,-1323.51973806,0.00041114,6]
[313153952,1706823057190,-209.0,0.00041277,2]
[313153953,1706823057200,-150.0,0.00041297,3]
[313153954,1706823057210,-253.5308426,0.00041297,3]
[313153955,1706823057220,-9357.88,0.000413,7]
[313153956,1706823057229,-340.880355,0.00041391,30]
[313153957,1706823057240,-603.762502,0.00041391,30]
[313153958,1706823057249,-177.272549,0.00041391,30]
[313153959,1706823057258,-1492.721981,0.00041391,30]
[313153960,1706823057268,-2279.061557,0.00041391,30]
[313153961,1706823057278,-339.986801,0.00041391,30]
[313153962,1706823057287,-153.55670088,0.00041456,12]
[313153963,1706823057300,-616.55545957,0.00041456,13]
[313153964,1706823057310,-184.29365455,0.00041522,4]
[313153965,1706823057319,-1000.0,0.000416,2]
[313153966,1706823057327,-2047.72134219,0.00041847,5]
[313153967,1706823057337,-340.880355,0.00041896,30]
[313153968,1706823057346,-603.762502,0.00041896,30]
[313153969,1706823057356,-1492.721981,0.00041896,30]
[313153970,1706823057365,-2279.061557,0.00041896,30]
[313153971,1706823057374,-339.986801,0.00041896,30]
[313153972,1706823057384,-205.0,0.000419,7]
[313153973,1706823057394,-1506.71475996,0.00041917,6]
[313153974,1706823057406,-351.52170293,0.0004196,6]
[313153975,1706823057416,-929.37819052,0.0004197,3]
[313153976,1706823057426,-100000.0,0.00042,22]
[313153977,1706823057437,-2230.73208294,0.00042,4]
[313153978,1706823057448,-731.95253954,0.00042,4]
[313153979,1706823057459,-395.14924267,0.00042,30]
[313153980,1706823057470,-1008.33949958,0.00042,6]
[313153981,1706823057480,-508.523569,0.00042,14]
[313153982,1706823057489,-1044.4885598,0.00042,2]
[313153983,1706823057498,-200.0,0.00042,2]
[313153984,1706823057507,-184.76338604,0.00042058,6]
[313153985,1706823057516,-2916.0,0.00042083,2]
[313153986,1706823057526,-839.0,0.00042083,2]
[313153987,1706823057535,-1033.0,0.00042083,2]
[313153988,1706823057545,-666.0,0.000421,4]
[313153989,1706823057554,-9380.34,0.000421,7]
[313153990,1706823057563,-1247.16069821,0.00042114,6]
[313153991,1706823057572,-273.20831317,0.00042114,6]
[313153992,1706823057581,-2062.63107628,0.00042114,6]
[313153993,1706823057590,-1941.0,0.00042176,2]
[313153994,1706823057599,-150.0,0.00042176,2]
[313153995,1706823057609,-210.0,0.00042176,2]
[313153996,1706823057618,-2281.0,0.00042176,2]
[313153997,1706823057628,-19773.0,0.00042176,2]
[313153998,1706823057638,-150.0,0.00042177,2]
[313153999,1706823057649,-420.25,0.00042192,2]
[313154000,1706823057659,-1000.0,0.00042205,2]
[313154001,1706823057669,-153.55670088,0.00042299,15]
[313154002,1706823057678,-9357.88,0.000423,7]
[313154003,1706823057687,-167.84976,0.00042401,30]
[313154004,1706823057695,-340.880355,0.00042401,30]
[313154005,1706823057705,-603.762502,0.00042401,30]
[313154006,1706823057714,-177.272549,0.00042401,30]
[313154007,1706823057723,-1492.721981,0.00042401,30]
[313154008,1706823057733,-2279.061557,0.00042401,30]
[313154009,1706823057741,-339.986801,0.00042401,30]
[313154010,1706823057750,-152.46688365,0.00042416,10]
[313154011,1706823057759,-79139.0739608,0.00042427,2]
[313154012,1706823057768,-26879.7258003,0.00042427,2]
[313154013,1706823057778,-10639.1977737,0.00042427,2]
[313154014,1706823057786,-194184.6169202,0.00042456,2]
[313154015,1706823057796,-639.402948,0.00042466,14]
[313154016,1706823057805,-155.0,0.00042467,2]
[313154017,1706823057814,-1000.0,0.00042477,15]
[313154018,1706823057823,-822.67848145,0.0004248,10]
[313154019,1706823057832,-2793.28,0.000425,4]
[313154020,1706823057842,-2793.28,0.000425,4]
[313154021,1706823057852,-2793.28,0.000425,4]
[313154022,1706823057862,-2793.28,0.000425,4]
[313154023,1706823057871,-2793.28,0.000425,4]
[313154024,1706823057880,-2793.28,0.000425,4]
[313154025,1706823057889,-2793.28,0.000425,4]
[313154026,1706823057901,-2793.28,0.000425,4]
[313154027,1706823057910,-2793.28,0.000425,4]
[313154028,1706823057919,-2793.28,0.000425,4]
[313154029,1706823057928,-2793.28,0.000425,4]
[313154030,1706823057941,-2793.28,0.000425,4]
[313154031,1706823057951,-2793.28,0.000425,4]
[313154032,1706823057960,-2793.28,0.000425,4]
[313154033,1706823057969,-2793.28,0.000425,4]
[313154034,1706823057979,-2793.28,0.000425,4]
[313154035,1706823057988,-2793.28,0.000425,4]
[313154036,1706823057997,-2793.28,0.000425,4]
[313154037,1706823058007,-2793.28,0.000425,4]
[313154038,1706823058019,-2793.28,0.000425,4]
[313154039,1706823058029,-153.85,0.000425,4]
[313154040,1706823058038,-153.85,0.000425,4]
[313154041,1706823058047,-153.85,0.000425,4]
[313154042,1706823058056,-153.85,0.000425,4]
[313154043,1706823058065,-153.85,0.000425,4]
[313154044,1706823058074,-153.85,0.000425,4]
[313154045,1706823058083,-153.85,0.000425,4]
[313154046,1706823058092,-153.85,0.000425,4]
[313154047,1706823058102,-1000.0,0.000425,4]
[313154048,1706823058112,-2698.17335163,0.00042542,2]
[313154049,1706823058121,-500.0,0.00042542,120]
[313154050,1706823058131,-1661.36601503,0.00042542,10]
[313154051,1706823058141,-300.0,0.00042542,46]
[313154052,1706823058151,-17767.608,0.00042542,7]
[313154053,1706823058161,-400.0,0.00042542,31]
[313154054,1706823058170,-389.73818243,0.00042542,14]
[313154055,1706823058179,-178063.06868912,0.00042542,5]
[313154056,1706823058188,-7128.36995635,0.00042542,7]
[313154057,1706823058197,-3710.12774852,0.00042542,7]
[313154058,1706823058207,-1260.06411072,0.00042542,7]
[313154059,1706823058216,-4230.45594107,0.00042542,7]
[313154060,1706823058226,-633.05596373,0.00042542,7]
[313154061,1706823058235,-1000.0,0.00042542,39]
[313154062,1706823058244,-379.700405,0.00042542,120]
[313154063,1706823058253,-3184.0,0.00042542,5]
[313154064,1706823058263,-2089.26677105,0.00042542,3]
[313154065,1706823058273,-1000.0,0.00042542,2]
[313154066,1706823058282,-154.28396379,0.00042542,2]
[313154067,1706823058292,-55602.36047705,0.00042542,3]
[313154068,1706823058301,-1680.0,0.00042542,120]
[313154069,1706823058310,-1946.93500871,0.00042542,120]
[313154070,1706823058319,-10634.41405733,0.00042542,2]
[313154071,1706823058329,-8263.99849095,0.00042542,2]
[313154072,1706823058338,-3167.08344928,0.00042542,30]
[313154073,1706823058347,-1745.335258,0.00042542,30]
[313154074,1706823058356,-150.0,0.00042542,60]
[313154075,1706823058365,-1971.609997,0.00042542,30]
[313154076,1706823058375,-2810.14879321,0.00042542,2]
[313154077,1706823058384,-150.0,0.00042595,4]
[313154078,1706823058394,-704.666546,0.000426,39]
[313154079,1706823058403,-205.0,0.00042609,33]
[313154080,1706823058413,-386.9786647,0.0004269,6]
[313154081,1706823058422,-1504.469003,0.000427,30]
[313154082,1706823058431,-430.94,0.00042793,2]
[313154083,1706823058440,-725.93873994,0.00042897,10]
[313154084,1706823058449,-311.50520017,0.00042925,7]
[313154085,1706823058458,-100000.0,0.00043,23]
[313154086,1706823058467,-500.0,0.00043,14]
[313154087,1706823058477,-205.0,0.00043,7]
[313154088,1706823058486,-1700.0,0.00043,3]
[313154089,1706823058495,-1044.4885598,0.00043,2]
[313154090,1706823058505,-420.25,0.00043014,2]
[313154091,1706823058514,-153.55670088,0.00043143,18]
[313154092,1706823058523,-1097.0,0.0004319,2]
[313154093,1706823058533,-1007.0,0.0004319,2]
[313154094,1706823058542,-150.0,0.00043259,2]
[313154095,1706823058551,-55261.77180975,0.0004326,2]
[313154096,1706823058560,-338775.501861,0.0004326,7]
[313154097,1706823058569,-639.402948,0.00043288,14]
[313154098,1706823058578,-2047.72134219,0.00043426,5]
[313154099,1706823058587,-9380.34,0.000435,7]
[313154100,1706823058598,-1000.0,0.00043677,2]
[313154101,1706823058606,-150.1,0.00043762,2]
[313154102,1706823058615,-1000.0,0.00043764,15]
[313154103,1706823058625,-8000.0,0.000438,2]
[313154104,1706823058635,-1000.0,0.00043808,15]
[313154105,1706823058644,-666.0,0.00043835,2]
[313154106,1706823058653,-8199.59,0.00043836,2]
[313154107,1706823058662,-1266.87,0.00043836,15]
[313154108,1706823058672,-155.0,0.00043837,2]
[313154109,1706823058681,-150.0,0.00043893,4]
[313154110,1706823058690,-151.0,0.00043939,14]
[313154111,1706823058700,-6867.24557167,0.00043939,2]
[313154112,1706823058709,-153.55670088,0.00043986,21]
[313154113,1706823058719,-100000.0,0.00044,24]
[313154114,1706823058728,-1000.0,0.00044,14]
[313154115,1706823058737,-524.3416484,0.00044,2]
[313154116,1706823058746,-1044.4885598,0.00044,2]
[313154117,1706823058755,-1000.0,0.00044005,30]
[313154118,1706823058765,-1000.0,0.00044047,30]
[313154119,1706823058773,-205.0,0.000441,7]
[313154120,1706823058782,-200.0,0.000441,2]
[313154121,1706823058791,-639.402948,0.0004411,14]
[313154122,1706823058800,-1000.0,0.00044278,30]
[313154123,1706823058810,-150.0,0.0004434,2]
[313154124,1706823058818,-1000.0,0.000444,2]
[313154125,1706823058827,-151.0,0.00044411,2]
[313154126,1706823058836,-1000.0,0.00044555,30]
[313154127,1706823058845,-1000.0,0.00044594,30]
[313154128,1706823058854,-153.55670088,0.00044829,25]
[313154129,1706823058862,-1000.0,0.00044919,30]
[313154130,1706823058871,-639.402948,0.00044932,14]
[313154131,1706823058988,-1000.0,0.00044974,30]
[313154132,1706823058999,-5000.0,0.00044986,4]
[313154133,1706823059008,-152.0,0.00044995,3]
[313154134,1706823059018,-100000.0,0.00045,25]
[313154135,1706823059029,-8600.0,0.00045,7]
[313154136,1706823059039,-159.92697087,0.00045,4]
[313154137,1706823059048,-518.13,0.00045,7]
[313154138,1706823059058,-300.72794,0.00045,2]
[313154139,1706823059067,-1000.0,0.00045,60]
[313154140,1706823059076,-5013.14694115,0.00045,3]
[313154141,1706823059085,-1000.0,0.00045,3]
[313154142,1706823059095,-81855.31147261,0.00045,3]
[313154143,1706823059104,-1094.24502936,0.00045,30]
[313154144,1706823059113,-151.0,0.00045,7]
[313154145,1706823059123,-151.0,0.00045,7]
[313154146,1706823059133,-1750.0,0.00045,3]
[313154147,1706823059142,-524.3416484,0.00045,2]
[313154148,1706823059152,-809.62539409,0.00045,2]
[313154149,1706823059162,-1000.0,0.00045,4]
[313154150,1706823059171,-2047.72134219,0.00045005,5]
[313154151,1706823059180,-450.0,0.0004502,15]
[313154152,1706823059189,-430.94,0.00045057,2]
[313154153,1706823059199,-500.0,0.00045075,4]
[313154154,1706823059208,-500.0,0.00045075,4]
[313154155,1706823059217,-500.0,0.00045075,4]
[313154156,1706823059226,-500.0,0.00045075,4]
[313154157,1706823059235,-500.0,0.00045075,4]
[313154158,1706823059244,-500.0,0.00045075,4]
[313154159,1706823059253,-500.0,0.00045075,4]
[313154160,1706823059262,-500.0,0.00045075,4]
[313154161,1706823059271,-500.0,0.00045075,4]
[313154162,1706823059280,-500.0,0.00045075,4]
[313154163,1706823059289,-500.0,0.00045075,4]
[313154164,1706823059298,-500.0,0.00045075,4]
[313154165,1706823059307,-500.0,0.00045075,4]
[313154166,1706823059315,-500.0,0.00045075,4]
[313154167,1706823059324,-500.0,0.00045075,4]
[313154168,1706823059374,-500.0,0.00045075,4]
[313154169,1706823059383,-500.0,0.00045075,4]
[313154170,1706823059392,-500.0,0.00045075,4]
[313154171,1706823059401,-500.0,0.00045075,4]
[313154172,1706823059410,-500.0,0.00045075,4]
[313154173,1706823059420,-500.0,0.00045075,4]
[313154174,1706823059429,-500.0,0.00045075,4]
[313154175,1706823059438,-196.0,0.00045075,4]
[313154176,1706823059448,-2896.0,0.00045083,2]
[313154177,1706823059458,-819.0,0.00045083,2]
[313154178,1706823059467,-471.35,0.00045083,2]
[313154179,1706823059475,-9380.34,0.000451,7]
[313154180,1706823059484,-1000.0,0.00045149,2]
[313154181,1706823059494,-302.0,0.00045157,4]
[313154182,1706823059503,-474.653,0.00045176,2]
[313154183,1706823059512,-150.0,0.00045176,2]
[313154184,1706823059521,-210.0,0.00045176,2]
[313154185,1706823059530,-2281.0,0.00045176,2]
[313154186,1706823059539,-10257.674,0.00045176,2]
[313154187,1706823059548,-150.0,0.00045191,5]
[313154188,1706823059557,-205.0,0.000452,7]
[313154189,1706823059566,-8000.0,0.000452,2]
[313154190,1706823059574,-163.18,0.00045205,2]
[313154191,1706823059583,-155.0,0.00045207,2]
[313154192,1706823059592,-3508.31076289,0.00045391,10]
[313154193,1706823059601,-150.0,0.00045422,2]
[313154194,1706823059610,-916.55096289,0.00045634,4]
[313154195,1706823059618,-153.55670088,0.00045673,28]
[313154196,1706823059627,-2100.0,0.00045742,2]
[313154197,1706823059636,-666.0,0.0004589,2]
[313154198,1706823059645,-684.26,0.0004589,2]
[313154199,1706823059655,-379.9,0.000459,2]
[313154200,1706823059664,-380.0,0.000459,2]
[313154201,1706823059673,-380.0,0.000459,2]
[313154202,1706823059681,-380.0,0.000459,2]
[313154203,1706823059690,-380.0,0.000459,2]
[313154204,1706823059699,-380.0,0.000459,2]
[313154205,1706823059708,-380.0,0.000459,2]
[313154206,1706823059717,-380.0,0.000459,2]
[313154207,1706823059727,-308.21,0.000459,2]
[313154208,1706823059737,-604.0,0.00045916,7]
[313154209,1706823059747,-100000.0,0.00046,26]
[313154210,1706823059757,-500.0,0.00046,2]
[313154211,1706823059767,-151.98857526,0.00046,2]
[313154212,1706823059776,-524.3416484,0.00046,5]
[313154213,1706823059785,-158.128899,0.00046,14]
[313154214,1706823059795,-158.128899,0.00046,14]
[313154215,1706823059805,-10000.0,0.00046,45]
[313154216,1706823059815,-19746.0,0.00046,45]
[313154217,1706823059824,-4215.0,0.00046,45]
[313154218,1706823059833,-674.0,0.00046,45]
[313154219,1706823059842,-181.0,0.00046,90]
[313154220,1706823059851,-726.0,0.00046,45]
[313154221,1706823059860,-205.0,0.00046087,38]
[313154222,1706823059869,-2793.28,0.000461,5]
[313154223,1706823059878,-2793.28,0.000461,5]
[313154224,1706823059887,-2793.28,0.000461,5]
[313154225,1706823059896,-2793.28,0.000461,5]
[313154226,1706823059905,-2793.28,0.000461,5]
[313154227,1706823059914,-2793.28,0.000461,5]
[313154228,1706823059923,-2793.28,0.000461,5]
[313154229,1706823059934,-2793.28,0.000461,5]
[313154230,1706823059943,-2793.28,0.000461,5]
[313154231,1706823059952,-2793.28,0.000461,5]
[313154232,1706823059962,-2793.28,0.000461,5]
[313154233,1706823059971,-2793.28,0.000461,5]
[313154234,1706823059981,-2793.28,0.000461,5]
[313154235,1706823059990,-2793.28,0.000461,5]
[313154236,1706823059999,-2793.28,0.000461,5]
[313154237,1706823060010,-2793.28,0.000461,5]
[313154238,1706823060019,-2793.28,0.000461,5]
[313154239,1706823060029,-2793.28,0.000461,5]
[313154240,1706823060038,-2793.28,0.000461,5]
[313154241,1706823060048,-2793.28,0.000461,5]
[313154242,1706823060057,-153.85,0.000461,5]
[313154243,1706823060067,-153.85,0.000461,5]
[313154244,1706823060076,-153.85,0.000461,5]
[313154245,1706823060085,-153.85,0.000461,5]
[313154246,1706823060094,-153.85,0.000461,5]
[313154247,1706823060104,-153.85,0.000461,5]
[313154248,1706823060113,-153.85,0.000461,5]
[313154249,1706823060123,-153.85,0.000461,5]
[313154250,1706823060132,-293.47994599,0.00046234,31]
[313154251,1706823060141,-205.0,0.000463,30]
[313154252,1706823060151,-420.25,0.00046301,2]
[313154253,1706823060160,-420.25,0.00046301,2]
[313154254,1706823060169,-420.25,0.00046301,2]
[313154255,1706823060178,-178.78,0.00046301,2]
[313154256,1706823060187,-9380.34,0.000464,7]
[313154257,1706823060196,-175.641216,0.000464,14]
[313154258,1706823060205,-175.641216,0.000464,14]
[313154259,1706823060214,-189.22063349,0.00046489,6]
[313154260,1706823060224,-150.0,0.000465,2]
[313154261,1706823060233,-150.0,0.00046503,2]
[313154262,1706823060242,-153.55670088,0.00046516,31]
[313154263,1706823060252,-500.0,0.00046575,7]
[313154264,1706823060261,-155.0,0.00046577,2]
[313154265,1706823060271,-2047.72134219,0.00046584,5]
[313154266,1706823060280,-1004.0,0.000466,2]
[313154267,1706823060289,-8000.0,0.000466,2]
[313154268,1706823060298,-250.0,0.000466,2]
[313154269,1706823060307,-562.0,0.000466,2]
[313154270,1706823060317,-278.45489081,0.000466,2]
[313154271,1706823060326,-13606.65,0.00046849,120]
[313154272,1706823060335,-1000.0,0.00046911,30]
[313154273,1706823060344,-1000.0,0.00046972,30]
[313154274,1706823060353,-151.0,0.0004698,14]
[313154275,1706823060362,-200.0,0.00046987,6]
[313154276,1706823060372,-100000.0,0.00046999,27]
[313154277,1706823060381,-150.0,0.00047,2]
[313154278,1706823060390,-1800.0,0.00047,3]
[313154279,1706823060399,-524.3416484,0.00047,8]
[313154280,1706823060409,-728.95674791,0.00047,45]
[313154281,1706823060418,-607.65305409,0.00047,45]
[313154282,1706823060427,-10000.0,0.00047,45]
[313154283,1706823060436,-19746.0,0.00047,45]
[313154284,1706823060445,-4214.0,0.00047,45]
[313154285,1706823060454,-674.0,0.00047,45]
[313154286,1706823060464,-725.0,0.00047,45]
[313154287,1706823060472,-500.0,0.00047014,7]
[313154288,1706823060482,-1208.0,0.00047079,30]
[313154289,1706823060491,-1000.0,0.000471,2]
[313154290,1706823060500,-1000.0,0.00047288,30]
[313154291,1706823060509,-1000.0,0.00047288,30]
[313154292,1706823060517,-1000.0,0.00047288,30]
[313154293,1706823060526,-1000.0,0.00047288,30]
[313154294,1706823060534,-430.94,0.00047321,2]
[313154295,1706823060543,-153.55670088,0.0004736,34]
[313154296,1706823060552,-1000.0,0.00047371,30]
[313154297,1706823060561,-205.0,0.000474,30]
[313154298,1706823060570,-500.0,0.00047452,7]
[313154299,1706823060579,-1000.0,0.00047458,30]
[313154300,1706823060588,-657.81618824,0.000475,10]
[313154301,1706823060596,-5000.0,0.000475,35]
[313154302,1706823060605,-150.0,0.000475,2]
[313154303,1706823060615,-322.49972388,0.000475,4]
[313154304,1706823060624,-2100.0,0.00047548,7]
[313154305,1706823060633,-1266.87,0.00047572,15]
[313154306,1706823060643,-150.0,0.00047585,2]
[313154307,1706823060653,-1000.0,0.00047668,30]
[313154308,1706823060662,-1900.0,0.0004789,2]
[313154309,1706823060671,-500.0,0.0004789,7]
[313154310,1706823060680,-11146.43434302,0.000479,28]
[313154311,1706823060689,-150.979532,0.000479,3]
[313154312,1706823060698,-151.0,0.000479,2]
[313154313,1706823060707,-4000.0,0.000479,2]
[313154314,1706823060716,-666.0,0.00047945,2]
[313154315,1706823060725,-500.0,0.00047945,30]
[313154316,1706823060734,-155.0,0.00047947,2]
[313154317,1706823060743,-74890.8684951,0.00047967,2]
[313154318,1706823060751,-25436.8153347,0.00047967,2]
[313154319,1706823060760,-11188.8242269,0.00047967,2]
[313154320,1706823060770,-200.0,0.00047987,7]
[313154321,1706823060779,-100000.0,0.00048,28]
[313154322,1706823060789,-86551.64842017,0.00048,30]
[313154323,1706823060798,-800.0,0.00048,4]
[313154324,1706823060807,-1946380.75898882,0.00048,4]
[313154325,1706823060818,-500.0,0.00048,7]
[313154326,1706823060827,-102274.52394872,0.00048,30]
[313154327,1706823060836,-150.93,0.00048,30]
[313154328,1706823060846,-150.0,0.00048,2]
[313154329,1706823060856,-1212.72260422,0.00048,2]
[313154330,1706823060865,-1018.31460781,0.00048,2]
[313154331,1706823060874,-151.0,0.00048,14]
[313154332,1706823060883,-151.0,0.00048,14]
[313154333,1706823060892,-151.0,0.00048,7]
[313154334,1706823060903,-151.0,0.00048,7]
[313154335,1706823060912,-524.3416484,0.00048,11]
[313154336,1706823060922,-175.641216,0.00048,14]
[313154337,1706823060932,-175.641216,0.00048,14]
[313154338,1706823060944,-151.0,0.00048,2]
[313154339,1706823060953,-158.128899,0.00048,14]
[313154340,1706823060963,-158.128899,0.00048,14]
[313154341,1706823060972,-152.96391305,0.0004809,30]
[313154342,1706823060982,-2047.72134219,0.00048163,5]
[313154343,1706823060991,-150.0,0.00048176,2]
[313154344,1706823061000,-210.0,0.00048176,2]
[313154345,1706823061009,-2281.0,0.00048176,2]
[313154346,1706823061020,-153.55670088,0.00048203,37]
[313154347,1706823061029,-152.96391305,0.00048217,30]
[313154348,1706823061039,-150.0,0.0004826,2]
[313154349,1706823061048,-500.0,0.00048329,7]
[313154350,1706823061057,-152.96391305,0.00048382,30]
[313154351,1706823061067,-2180.0,0.00048403,30]
[313154352,1706823061076,-432.0,0.00048403,30]
[313154353,1706823061086,-20299.0,0.00048403,30]
[313154354,1706823061095,-152.96391305,0.00048467,30]
[313154355,1706823061104,-255.0,0.000485,2]
[313154356,1706823061114,-150.0,0.000485,2]
[313154357,1706823061123,-205.0,0.000485,30]
[313154358,1706823061132,-152.96391305,0.00048518,30]
[313154359,1706823061141,-181.0,0.00048553,90]
[313154360,1706823061151,-150.0,0.00048666,2]
[313154361,1706823061161,-1476.0,0.0004869,2]
[313154362,1706823061170,-1349.0,0.0004869,2]
[313154363,1706823061179,-75021.51890496,0.000487,2]
[313154364,1706823061189,-1021.06824423,0.000487,6]
[313154365,1706823061198,-1685.0,0.000487,117]
[313154366,1706823061207,-2100.0,0.00048752,20]
[313154367,1706823061217,-500.0,0.00048767,7]
[313154368,1706823061226,-152.96391305,0.00048787,30]
[313154369,1706823061235,-31155.34110397,0.00048788,7]
[313154370,1706823061244,-9356.44732246,0.000488,10]
[313154371,1706823061254,-151.51747848,0.00048835,30]
[313154372,1706823061263,-152.96391305,0.0004886,30]
[313154373,1706823061374,-2485.0,0.0004889,2]
[313154374,1706823061383,-2284.0,0.0004889,2]
[313154375,1706823061392,-126905.49895799,0.000489,2]
[313154376,1706823061402,-2180.0,0.00048902,30]
[313154377,1706823061411,-432.0,0.00048902,30]
[313154378,1706823061421,-152.96391305,0.00048916,30]
[313154379,1706823061430,-5000.0,0.00048968,4]
[313154380,1706823061439,-200.0,0.00048987,8]
[313154381,1706823061448,-766.0,0.0004899,2]
[313154382,1706823061457,-699.0,0.0004899,2]
[313154383,1706823061467,-100000.0,0.00049,29]
[313154384,1706823061477,-2101.35,0.00049,60]
[313154385,1706823061487,-714.04445269,0.00049,14]
[313154386,1706823061496,-8024.83232476,0.00049,10]
[313154387,1706823061505,-9357.88,0.00049,7]
[313154388,1706823061514,-38520.041,0.00049,2]
[313154389,1706823061523,-150.0,0.00049,2]
[313154390,1706823061532,-1850.0,0.00049,3]
[313154391,1706823061541,-400.0,0.00049,49]
[313154392,1706823061550,-500.0,0.00049,2]
[313154393,1706823061559,-667.31349774,0.0004904,14]
[313154394,1706823061568,-667.31349774,0.0004904,14]
[313154395,1706823061576,-667.31349774,0.0004904,14]
[313154396,1706823061585,-667.31349774,0.0004904,14]
[313154397,1706823061594,-667.31349774,0.0004904,14]
[313154398,1706823061602,-667.31349774,0.0004904,14]
[313154399,1706823061612,-667.31349774,0.0004904,14]
[313154400,1706823061621,-667.31349774,0.0004904,14]
[313154401,1706823061630,-667.31349774,0.0004904,14]
[313154402,1706823061639,-667.31349774,0.0004904,14]
[313154403,1706823061650,-667.31349774,0.0004904,14]
[313154404,1706823061659,-667.31349774,0.0004904,14]
[313154405,1706823061668,-667.31349774,0.0004904,14]
[313154406,1706823061678,-667.31349774,0.0004904,14]
[313154407,1706823061687,-667.31349774,0.0004904,14]
[313154408,1706823061696,-667.31349774,0.0004904,14]
[313154409,1706823061705,-667.31349774,0.0004904,14]
[313154410,1706823061714,-667.31349774,0.0004904,14]
[313154411,1706823061723,-667.31349774,0.0004904,14]
[313154412,1706823061732,-667.31,0.0004904,14]
[313154413,1706823061741,-271.94761045,0.0004904,14]
[313154414,1706823061750,-271.94761045,0.0004904,14]
[313154415,1706823061759,-271.94761045,0.0004904,14]
[313154416,1706823061769,-271.94761045,0.0004904,14]
[313154417,1706823061779,-271.94761045,0.0004904,14]
[313154418,1706823061789,-271.94761045,0.0004904,14]
[313154419,1706823061798,-271.94761045,0.0004904,14]
[313154420,1706823061808,-271.94761045,0.0004904,14]
[313154421,1706823061817,-271.94761045,0.0004904,14]
[313154422,1706823061827,-271.94761045,0.0004904,14]
[313154423,1706823061836,-271.94761045,0.0004904,14]
[313154424,1706823061845,-271.94761045,0.0004904,14]
[313154425,1706823061854,-271.94761045,0.0004904,14]
[313154426,1706823061864,-271.94761045,0.0004904,14]
[313154427,1706823061873,-271.94761045,0.0004904,14]
[313154428,1706823061882,-271.94761045,0.0004904,14]